[Event "*** Titled Tuesday Blitz"]
[Site "Chess.com"]
[Date "2020.05.12"]
[Round "5"]
[White "LivajaM"]
[Black "Flawless_Fighter"]
[Result "0-1"]
[WhiteElo "2279"]
[BlackElo "2479"]
[TimeControl "180+1"]
[EndTime "10:56:14 PDT"]
[Termination "Flawless_Fighter won by resignation"]

1. d4 {[%clk 0:03:00.9]} 1... Nf6 {[%clk 0:02:54]} 2. Bg5 {[%clk 0:02:59.8]}
2... e6 {[%clk 0:02:52.8]} 3. Nf3 {[%clk 0:02:59.2]} 3... d5 {[%clk 0:02:51.3]}
4. c4 {[%clk 0:02:58.8]} 4... Bb4+ {[%clk 0:02:48.7]} 5. Nc3 {[%clk 0:02:58.3]}
5... dxc4 {[%clk 0:02:40.4]} 6. Qa4+ {[%clk 0:02:51.8]} 6... Nc6 {[%clk
0:02:39.7]} 7. e3 {[%clk 0:02:51.1]} 7... a6 {[%clk 0:02:32.2]} 8. Bxc4 {[%clk
0:02:46.8]} 8... Bd7 {[%clk 0:02:30.7]} 9. Qc2 {[%clk 0:02:41.9]} 9... h6 {[%clk
0:02:24.3]} 10. Bh4 {[%clk 0:02:41.1]} 10... O-O {[%clk 0:02:14.2]} 11. Rd1
{[%clk 0:02:37.8]} 11... b5 {[%clk 0:02:07.8]} 12. Bd3 {[%clk 0:02:33.8]} 12...
Qe7 {[%clk 0:02:03.6]} 13. O-O {[%clk 0:02:29.3]} 13... g5 {[%clk 0:01:55.9]}
14. Nxg5 {[%clk 0:02:13.1]} 14... hxg5 {[%clk 0:01:50.7]} 15. Bxg5 {[%clk
0:02:13.1]} 15... Bxc3 {[%clk 0:01:49.3]} 16. bxc3 {[%clk 0:02:09.7]} 16... e5
{[%clk 0:01:35.1]} 17. d5 {[%clk 0:02:06.9]} 17... Na5 {[%clk 0:01:29.6]} 18.
Bf5 {[%clk 0:02:03.9]} 18... Kg7 {[%clk 0:01:20.5]} 19. f4 {[%clk 0:01:57.8]}
19... e4 {[%clk 0:01:16.8]} 20. Bxd7 {[%clk 0:01:52]} 20... Qxd7 {[%clk
0:01:17.7]} 21. Bxf6+ {[%clk 0:01:38.4]} 21... Kxf6 {[%clk 0:01:17.2]} 22. Qxe4
{[%clk 0:01:38.7]} 22... Qd6 {[%clk 0:00:54.6]} 23. Qd4+ {[%clk 0:01:29]} 23...
Ke7 {[%clk 0:00:54.7]} 24. e4 {[%clk 0:01:29]} 24... Qb6 {[%clk 0:00:52.7]} 25.
e5 {[%clk 0:01:20.8]} 25... Qxd4+ {[%clk 0:00:51.1]} 26. Rxd4 {[%clk 0:01:18.8]}
26... Nc4 {[%clk 0:00:49.8]} 27. Re1 {[%clk 0:01:11.6]} 27... Rg8 {[%clk
0:00:43.9]} 28. Kf2 {[%clk 0:01:10.4]} 28... Rad8 {[%clk 0:00:38.7]} 29. Kf3
{[%clk 0:01:06.7]} 29... Nb6 {[%clk 0:00:36.6]} 30. Red1 {[%clk 0:01:02.9]}
30... f5 {[%clk 0:00:32.2]} 31. d6+ {[%clk 0:00:55.8]} 31... cxd6 {[%clk
0:00:30.1]} 32. Rxd6 {[%clk 0:00:55]} 32... Nc4 {[%clk 0:00:28.5]} 33. R6d4
{[%clk 0:00:35.2]} 33... Rxd4 {[%clk 0:00:23]} 34. Rxd4 {[%clk 0:00:29.1]} 34...
Rc8 {[%clk 0:00:19.6]} 35. h3 {[%clk 0:00:26.4]} 35... Nb2 {[%clk 0:00:13.3]}
36. Rd6 {[%clk 0:00:20]} 36... Rxc3+ {[%clk 0:00:13.6]} 37. Kf2 {[%clk
0:00:20.1]} 37... Nd3+ {[%clk 0:00:11.4]} 38. Ke3 {[%clk 0:00:18.8]} 38... Nb4+
{[%clk 0:00:03.3]} 39. Kf2 {[%clk 0:00:13.6]} 39... Ra3 {[%clk 0:00:03.8]} 40.
Rf6 {[%clk 0:00:12.6]} 40... Rxa2+ {[%clk 0:00:03.9]} 41. Kg3 {[%clk 0:00:13.5]}
41... Ra3+ {[%clk 0:00:03.1]} 42. Kh4 {[%clk 0:00:13]} 42... Nd5 {[%clk
0:00:03.6]} 43. g3 {[%clk 0:00:12.4]} 43... Nxf6 {[%clk 0:00:03.1]} 44. exf6+
{[%clk 0:00:13.3]} 44... Kxf6 {[%clk 0:00:03.9]} 45. g4 {[%clk 0:00:13]} 45...
fxg4 {[%clk 0:00:04.2]} 46. hxg4 {[%clk 0:00:13.9]} 46... Rf3 {[%clk 0:00:04.4]}
47. f5 {[%clk 0:00:14.8]} 47... Rf4 {[%clk 0:00:03.7]} 48. Kh5 {[%clk
0:00:14.7]} 48... b4 {[%clk 0:00:03]} 49. Kh6 {[%clk 0:00:14.8]} 49... Rxg4
{[%clk 0:00:02.7]} 50. Kh5 {[%clk 0:00:14.6]} 50... Kxf5 {[%clk 0:00:03.6]} 0-1

[Event "*** Titled Tuesday Blitz"]
[Site "Chess.com"]
[Date "2020.05.12"]
[Round "5"]
[White "Azatic"]
[Black "Sjakkerntobi"]
[Result "1/2-1/2"]
[WhiteElo "2571"]
[BlackElo "2306"]
[TimeControl "180+1"]
[EndTime "10:56:15 PDT"]
[Termination "Game drawn by agreement"]

1. e4 {[%clk 0:03:00.9]} 1... e6 {[%clk 0:02:53.8]} 2. d4 {[%clk 0:03:00.2]}
2... d5 {[%clk 0:02:51.2]} 3. e5 {[%clk 0:03:00.8]} 3... c5 {[%clk 0:02:50.1]}
4. c3 {[%clk 0:03:00.8]} 4... Nc6 {[%clk 0:02:50]} 5. Nf3 {[%clk 0:03:00.5]}
5... Bd7 {[%clk 0:02:46.7]} 6. a3 {[%clk 0:03:00.5]} 6... Rc8 {[%clk 0:02:45.1]}
7. b4 {[%clk 0:02:55.8]} 7... cxd4 {[%clk 0:02:45]} 8. cxd4 {[%clk 0:02:56.7]}
8... Nh6 {[%clk 0:02:41.8]} 9. Bd3 {[%clk 0:02:53.2]} 9... Nf5 {[%clk
0:02:38.4]} 10. Be3 {[%clk 0:02:52.2]} 10... Qb6 {[%clk 0:02:28.6]} 11. Bxf5
{[%clk 0:02:49.9]} 11... exf5 {[%clk 0:02:27.5]} 12. O-O {[%clk 0:02:50.8]}
12... Be6 {[%clk 0:02:23.5]} 13. Qd3 {[%clk 0:02:50.6]} 13... Be7 {[%clk
0:02:22.7]} 14. Nc3 {[%clk 0:02:48.7]} 14... O-O {[%clk 0:02:20.1]} 15. Rac1
{[%clk 0:02:47.7]} 15... a6 {[%clk 0:02:10.2]} 16. Na4 {[%clk 0:02:46.9]} 16...
Qb5 {[%clk 0:02:07.3]} 17. Qxb5 {[%clk 0:02:27.9]} 17... axb5 {[%clk 0:02:08.2]}
18. Nc5 {[%clk 0:02:28.8]} 18... b6 {[%clk 0:02:07.9]} 19. Nxe6 {[%clk
0:02:11.5]} 19... fxe6 {[%clk 0:02:08.8]} 20. h4 {[%clk 0:01:52.6]} 20... h6
{[%clk 0:02:04.8]} 21. g3 {[%clk 0:01:50.8]} 21... Na7 {[%clk 0:01:47.7]} 22.
Nd2 {[%clk 0:01:27.5]} 22... g5 {[%clk 0:01:28.5]} 23. hxg5 {[%clk 0:01:23.1]}
23... hxg5 {[%clk 0:01:29.4]} 24. f4 {[%clk 0:01:14.8]} 24... g4 {[%clk
0:01:28.2]} 25. Kf2 {[%clk 0:01:10.4]} 25... Kg7 {[%clk 0:01:13.8]} 26. Ke2
{[%clk 0:00:54.3]} 26... Rxc1 {[%clk 0:01:11.7]} 27. Rxc1 {[%clk 0:00:54.2]}
27... Rc8 {[%clk 0:01:11.7]} 28. Rxc8 {[%clk 0:00:51.2]} 28... Nxc8 {[%clk
0:01:12.6]} 29. Nb1 {[%clk 0:00:51.6]} 29... Kf7 {[%clk 0:01:12.3]} 30. Nc3
{[%clk 0:00:50.9]} 30... Na7 {[%clk 0:01:12.4]} 31. Kd3 {[%clk 0:00:50.5]} 31...
Ke8 {[%clk 0:01:12.2]} 32. Kc2 {[%clk 0:00:42]} 32... Kd7 {[%clk 0:01:10.4]} 33.
Kb3 {[%clk 0:00:41.4]} 33... Kc6 {[%clk 0:01:00.8]} 34. Bd2 {[%clk 0:00:26.4]}
34... Kb7 {[%clk 0:00:49.9]} 35. a4 {[%clk 0:00:23.3]} 35... Ka6 {[%clk
0:00:48.8]} 36. Be3 {[%clk 0:00:07.4]} 36... bxa4+ {[%clk 0:00:33.8]} 37. Kxa4
{[%clk 0:00:08.3]} 37... b5+ {[%clk 0:00:29.8]} 38. Kb3 {[%clk 0:00:08.3]} 38...
Nc6 {[%clk 0:00:29.8]} 39. Na2 {[%clk 0:00:08.5]} 39... Bd8 {[%clk 0:00:20.4]}
40. Kc3 {[%clk 0:00:08.2]} 40... Be7 {[%clk 0:00:20]} 41. Bf2 {[%clk 0:00:08.3]}
41... Kb6 {[%clk 0:00:20.2]} 42. Be3 {[%clk 0:00:08.6]} 42... Kb7 {[%clk
0:00:20.6]} 43. Bf2 {[%clk 0:00:09]} 43... Kc7 {[%clk 0:00:20.3]} 44. Be3 {[%clk
0:00:09.3]} 44... Kb6 {[%clk 0:00:20.8]} 45. Bf2 {[%clk 0:00:09.7]} 45... Kb7
{[%clk 0:00:21]} 46. Be3 {[%clk 0:00:10.1]} 46... Kb6 {[%clk 0:00:20.6]} 47. Bf2
{[%clk 0:00:10.4]} 47... Kb7 {[%clk 0:00:20.7]} 48. Be3 {[%clk 0:00:10.8]}
1/2-1/2

[Event "*** Titled Tuesday Blitz"]
[Site "Chess.com"]
[Date "2020.05.12"]
[Round "5"]
[White "BakaPG"]
[Black "GeorgMeier"]
[Result "1-0"]
[WhiteElo "2645"]
[BlackElo "3008"]
[TimeControl "180+1"]
[EndTime "10:56:16 PDT"]
[Termination "BakaPG won by checkmate"]

1. e4 {[%clk 0:03:00.9]} 1... e6 {[%clk 0:03:00.1]} 2. d4 {[%clk 0:03:00.3]}
2... d5 {[%clk 0:03:00.1]} 3. e5 {[%clk 0:03:00.8]} 3... c5 {[%clk 0:02:59.9]}
4. c3 {[%clk 0:03:01.4]} 4... Ne7 {[%clk 0:03:00.3]} 5. Nf3 {[%clk 0:03:01.5]}
5... Nec6 {[%clk 0:03:00.6]} 6. a3 {[%clk 0:03:00.6]} 6... a5 {[%clk 0:02:59.1]}
7. Bd3 {[%clk 0:02:57.3]} 7... b6 {[%clk 0:02:59.1]} 8. O-O {[%clk 0:02:54.2]}
8... Ba6 {[%clk 0:02:59]} 9. Ng5 {[%clk 0:02:43.7]} 9... Be7 {[%clk 0:02:11.2]}
10. f4 {[%clk 0:02:28.4]} 10... cxd4 {[%clk 0:01:56.4]} 11. cxd4 {[%clk
0:02:23.1]} 11... Nxd4 {[%clk 0:01:37.7]} 12. Be3 {[%clk 0:01:54.3]} 12... Bxd3
{[%clk 0:01:30.1]} 13. Qxd3 {[%clk 0:01:51.6]} 13... Nf5 {[%clk 0:01:29.8]} 14.
Bd2 {[%clk 0:01:32]} 14... h5 {[%clk 0:01:25.2]} 15. Nc3 {[%clk 0:01:30.5]}
15... Nc6 {[%clk 0:01:06.7]} 16. Rae1 {[%clk 0:01:22.8]} 16... Rc8 {[%clk
0:01:02.9]} 17. Nb5 {[%clk 0:01:19.3]} 17... g6 {[%clk 0:00:53.6]} 18. Nf3
{[%clk 0:01:16.3]} 18... Qd7 {[%clk 0:00:51]} 19. g3 {[%clk 0:01:13.7]} 19...
Kf8 {[%clk 0:00:48.4]} 20. h3 {[%clk 0:01:12.9]} 20... Kg7 {[%clk 0:00:44]} 21.
Kg2 {[%clk 0:01:10.7]} 21... h4 {[%clk 0:00:41.6]} 22. g4 {[%clk 0:01:06.9]}
22... Ng3 {[%clk 0:00:41.9]} 23. Rf2 {[%clk 0:00:59]} 23... Bc5 {[%clk
0:00:38.5]} 24. Be3 {[%clk 0:00:56.9]} 24... a4 {[%clk 0:00:36.6]} 25. Nfd4
{[%clk 0:00:51.7]} 25... Nxd4 {[%clk 0:00:31.2]} 26. Bxd4 {[%clk 0:00:46]} 26...
Ne4 {[%clk 0:00:23.7]} 27. Rf3 {[%clk 0:00:42.6]} 27... Rhg8 {[%clk 0:00:22.8]}
28. Ref1 {[%clk 0:00:39.4]} 28... Kf8 {[%clk 0:00:20.7]} 29. Kh2 {[%clk
0:00:39]} 29... Ke8 {[%clk 0:00:19.6]} 30. f5 {[%clk 0:00:39.1]} 30... gxf5
{[%clk 0:00:17.7]} 31. gxf5 {[%clk 0:00:39.1]} 31... Rg3 {[%clk 0:00:17.2]} 32.
fxe6 {[%clk 0:00:32]} 32... Qxe6 {[%clk 0:00:17.6]} 33. Rxg3 {[%clk 0:00:32.4]}
33... hxg3+ {[%clk 0:00:17.3]} 34. Kg2 {[%clk 0:00:32.4]} 34... Kd7 {[%clk
0:00:15.2]} 35. Bxc5 {[%clk 0:00:28.9]} 35... bxc5 {[%clk 0:00:15.1]} 36. Na7
{[%clk 0:00:26.9]} 36... Rb8 {[%clk 0:00:15]} 37. Qc2 {[%clk 0:00:25]} 37... Kc7
{[%clk 0:00:07.1]} 38. Qxa4 {[%clk 0:00:23]} 38... Rxb2+ {[%clk 0:00:07]} 39.
Kg1 {[%clk 0:00:23.5]} 39... Kb7 {[%clk 0:00:05.6]} 40. Nb5 {[%clk 0:00:22.2]}
40... Rxb5 {[%clk 0:00:02.2]} 41. Qxb5+ {[%clk 0:00:21.6]} 41... Kc8 {[%clk
0:00:03.1]} 42. Rb1 {[%clk 0:00:21.4]} 42... Qxe5 {[%clk 0:00:01.4]} 43. Qc6+
{[%clk 0:00:19.3]} 43... Kd8 {[%clk 0:00:01.5]} 44. Qa8+ {[%clk 0:00:19.3]}
44... Ke7 {[%clk 0:00:01.9]} 45. Rb7+ {[%clk 0:00:19.1]} 45... Kf6 {[%clk
0:00:01.8]} 46. Qh8+ {[%clk 0:00:18.5]} 46... Kf5 {[%clk 0:00:02.7]} 47. Rxf7+
{[%clk 0:00:17.4]} 47... Nf6 {[%clk 0:00:03.3]} 48. Qh7+ {[%clk 0:00:10]} 48...
Kf4 {[%clk 0:00:02.2]} 49. Qh4+ {[%clk 0:00:08]} 49... Kf5 {[%clk 0:00:01.4]}
50. Qg4# {[%clk 0:00:08.1]} 1-0

[Event "*** Titled Tuesday Blitz"]
[Site "Chess.com"]
[Date "2020.05.12"]
[Round "5"]
[White "NZT72"]
[Black "kleinebeer98"]
[Result "1/2-1/2"]
[WhiteElo "2475"]
[BlackElo "2657"]
[TimeControl "180+1"]
[EndTime "10:56:16 PDT"]
[Termination "Game drawn by repetition"]

1. c4 {[%clk 0:03:00.9]} 1... Nf6 {[%clk 0:02:54.1]} 2. g3 {[%clk 0:03:00.9]}
2... e6 {[%clk 0:02:51.8]} 3. Bg2 {[%clk 0:03:00.6]} 3... Be7 {[%clk 0:02:47.9]}
4. Nf3 {[%clk 0:03:00.6]} 4... O-O {[%clk 0:02:47.6]} 5. O-O {[%clk 0:03:00.4]}
5... d5 {[%clk 0:02:47.1]} 6. d4 {[%clk 0:03:00.7]} 6... dxc4 {[%clk 0:02:45.8]}
7. Qa4 {[%clk 0:03:00.8]} 7... a6 {[%clk 0:02:45.1]} 8. Qxc4 {[%clk 0:03:00.8]}
8... b5 {[%clk 0:02:45.5]} 9. Qc2 {[%clk 0:03:01]} 9... Bb7 {[%clk 0:02:45.7]}
10. Bd2 {[%clk 0:03:01.3]} 10... Nc6 {[%clk 0:02:42.6]} 11. e3 {[%clk 0:02:52]}
11... Rc8 {[%clk 0:02:29.3]} 12. Rc1 {[%clk 0:02:50.2]} 12... Nb4 {[%clk
0:02:25.1]} 13. Bxb4 {[%clk 0:02:47.3]} 13... Bxb4 {[%clk 0:02:26]} 14. a3
{[%clk 0:02:32.9]} 14... Bd6 {[%clk 0:02:15.2]} 15. b4 {[%clk 0:02:29.8]} 15...
a5 {[%clk 0:02:13.4]} 16. Qb2 {[%clk 0:01:38.3]} 16... Ra8 {[%clk 0:02:01.1]}
17. Nc3 {[%clk 0:01:34.8]} 17... Nd5 {[%clk 0:01:48.8]} 18. Nxb5 {[%clk
0:01:27.9]} 18... axb4 {[%clk 0:01:47.7]} 19. Nxd6 {[%clk 0:01:22.1]} 19... Qxd6
{[%clk 0:01:44]} 20. axb4 {[%clk 0:01:17.1]} 20... Nxb4 {[%clk 0:01:25.7]} 21.
Rcb1 {[%clk 0:00:44.2]} 21... Rxa1 {[%clk 0:01:22.4]} 22. Rxa1 {[%clk
0:00:43.4]} 22... Bd5 {[%clk 0:01:17.3]} 23. Qc3 {[%clk 0:00:33.3]} 23... Rb8
{[%clk 0:01:03.8]} 24. Rb1 {[%clk 0:00:30.3]} 24... c6 {[%clk 0:00:42.8]} 25.
Ne5 {[%clk 0:00:25]} 25... Bxg2 {[%clk 0:00:33]} 26. Kxg2 {[%clk 0:00:25.1]}
26... f6 {[%clk 0:00:28.5]} 27. Nd3 {[%clk 0:00:16.5]} 27... Nxd3 {[%clk
0:00:28.1]} 28. Rxb8+ {[%clk 0:00:16.3]} 28... Qxb8 {[%clk 0:00:29]} 29. Qxd3
{[%clk 0:00:16.7]} 29... Qd6 {[%clk 0:00:28.3]} 30. h4 {[%clk 0:00:16]} 30... h6
{[%clk 0:00:26.6]} 31. Qc3 {[%clk 0:00:15.1]} 31... Kf7 {[%clk 0:00:25.6]} 32.
Kh2 {[%clk 0:00:15.1]} 32... Kg6 {[%clk 0:00:23]} 33. Qc2+ {[%clk 0:00:14.7]}
33... Kf7 {[%clk 0:00:22]} 34. Qc3 {[%clk 0:00:14.5]} 34... Qd5 {[%clk
0:00:22.2]} 35. Qc2 {[%clk 0:00:12.9]} 35... Qf3 {[%clk 0:00:22.1]} 36. Kg1
{[%clk 0:00:12.7]} 36... Qd5 {[%clk 0:00:16.1]} 37. Qc3 {[%clk 0:00:12.3]} 37...
Qf3 {[%clk 0:00:16.1]} 38. Qc2 {[%clk 0:00:12.2]} 38... f5 {[%clk 0:00:13.3]}
39. Qc5 {[%clk 0:00:11.3]} 39... Qd1+ {[%clk 0:00:12.4]} 40. Kg2 {[%clk
0:00:11.1]} 40... Qa4 {[%clk 0:00:09.4]} 41. Qd6 {[%clk 0:00:10.6]} 41... Qc4
{[%clk 0:00:07.8]} 42. Qd7+ {[%clk 0:00:10.6]} 42... Kf8 {[%clk 0:00:07.2]} 43.
Qd8+ {[%clk 0:00:10.6]} 43... Kf7 {[%clk 0:00:07.6]} 44. Qd7+ {[%clk 0:00:10.9]}
44... Kg8 {[%clk 0:00:07.7]} 45. Qe8+ {[%clk 0:00:10.8]} 45... Kh7 {[%clk
0:00:07.8]} 46. Qe7 {[%clk 0:00:10.6]} 46... Qd5+ {[%clk 0:00:07.5]} 47. Kg1
{[%clk 0:00:10.6]} 47... Qe4 {[%clk 0:00:06.5]} 48. Qd6 {[%clk 0:00:08.5]} 48...
Qd5 {[%clk 0:00:06.4]} 49. Qe7 {[%clk 0:00:08.3]} 49... Qe4 {[%clk 0:00:06.2]}
50. Qd6 {[%clk 0:00:08.4]} 50... Qd5 {[%clk 0:00:06.6]} 51. Qe7 {[%clk
0:00:08.5]} 1/2-1/2

[Event "*** Titled Tuesday Blitz"]
[Site "Chess.com"]
[Date "2020.05.12"]
[Round "5"]
[White "Kostya26"]
[Black "bazar-wokzal"]
[Result "0-1"]
[WhiteElo "2394"]
[BlackElo "2552"]
[TimeControl "180+1"]
[EndTime "10:56:17 PDT"]
[Termination "bazar-wokzal won on time"]

1. d4 {[%clk 0:03:00.9]} 1... Nf6 {[%clk 0:02:56.1]} 2. Nf3 {[%clk 0:02:59.7]}
2... e6 {[%clk 0:02:55.8]} 3. Bf4 {[%clk 0:02:53.8]} 3... c5 {[%clk 0:02:55.2]}
4. e3 {[%clk 0:02:53.5]} 4... b6 {[%clk 0:02:55]} 5. c3 {[%clk 0:02:53.1]} 5...
Bb7 {[%clk 0:02:54.9]} 6. Bd3 {[%clk 0:02:52.6]} 6... Be7 {[%clk 0:02:55.1]} 7.
Nbd2 {[%clk 0:02:52.6]} 7... h6 {[%clk 0:02:53.8]} 8. h3 {[%clk 0:02:52.8]} 8...
d6 {[%clk 0:02:53.2]} 9. Qe2 {[%clk 0:02:52.9]} 9... Nbd7 {[%clk 0:02:53]} 10.
Rd1 {[%clk 0:02:50.4]} 10... Qc7 {[%clk 0:02:51.9]} 11. Bh2 {[%clk 0:02:49.3]}
11... O-O-O {[%clk 0:02:46.2]} 12. O-O {[%clk 0:02:46.2]} 12... g5 {[%clk
0:02:46.2]} 13. Ba6 {[%clk 0:02:29.8]} 13... g4 {[%clk 0:02:45.5]} 14. Bxb7+
{[%clk 0:02:26.6]} 14... Qxb7 {[%clk 0:02:43.3]} 15. hxg4 {[%clk 0:02:27.1]}
15... Nxg4 {[%clk 0:02:42.6]} 16. e4 {[%clk 0:02:18.7]} 16... Nxh2 {[%clk
0:02:40.8]} 17. Kxh2 {[%clk 0:02:12.9]} 17... Rdg8 {[%clk 0:02:40.7]} 18. Nc4
{[%clk 0:01:58.7]} 18... d5 {[%clk 0:02:30.5]} 19. exd5 {[%clk 0:01:52]} 19...
Qxd5 {[%clk 0:02:30.4]} 20. dxc5 {[%clk 0:01:48.7]} 20... Qxc5 {[%clk 0:02:22]}
21. Qe4 {[%clk 0:01:01.1]} 21... Qc7+ {[%clk 0:02:01.4]} 22. Kh1 {[%clk
0:00:53.1]} 22... Kb8 {[%clk 0:02:01.2]} 23. Nce5 {[%clk 0:00:26.9]} 23... Nc5
{[%clk 0:01:57]} 24. Qc6 {[%clk 0:00:23.3]} 24... f6 {[%clk 0:01:47.3]} 25. Nd7+
{[%clk 0:00:21.3]} 25... Nxd7 {[%clk 0:01:38.8]} 26. Qxd7 {[%clk 0:00:21.4]}
26... e5 {[%clk 0:01:28.8]} 27. Nh4 {[%clk 0:00:14.6]} 27... Rd8 {[%clk
0:01:19.4]} 28. Qxc7+ {[%clk 0:00:13.6]} 28... Kxc7 {[%clk 0:01:19.3]} 29. Ng6
{[%clk 0:00:12.7]} 29... Rhe8 {[%clk 0:01:10.4]} 30. Nxe7 {[%clk 0:00:12.8]}
30... Rxe7 {[%clk 0:01:09.4]} 31. Rxd8 {[%clk 0:00:13.7]} 31... Kxd8 {[%clk
0:01:09.5]} 32. Rd1+ {[%clk 0:00:14.4]} 32... Kc7 {[%clk 0:01:08.9]} 33. Kh2
{[%clk 0:00:14.2]} 33... Kc6 {[%clk 0:01:06.3]} 34. Kg3 {[%clk 0:00:14.3]} 34...
f5 {[%clk 0:01:05.6]} 35. Kh4 {[%clk 0:00:14.3]} 35... Rg7 {[%clk 0:01:01.6]}
36. g3 {[%clk 0:00:14]} 36... b5 {[%clk 0:00:52]} 37. Kh5 {[%clk 0:00:13.5]}
37... e4 {[%clk 0:00:40.1]} 38. Kxh6 {[%clk 0:00:13.1]} 38... Rg8 {[%clk
0:00:40.3]} 39. Kh7 {[%clk 0:00:13.4]} 39... Rg4 {[%clk 0:00:39.7]} 40. Rd8
{[%clk 0:00:13.5]} 40... f4 {[%clk 0:00:38.9]} 41. gxf4 {[%clk 0:00:09.6]} 41...
Rxf4 {[%clk 0:00:39.1]} 42. Rd4 {[%clk 0:00:09.2]} 42... Rxf2 {[%clk 0:00:37.6]}
43. Rxe4 {[%clk 0:00:09.6]} 43... Rxb2 {[%clk 0:00:37.5]} 44. a4 {[%clk
0:00:10.1]} 44... bxa4 {[%clk 0:00:33.6]} 45. Rxa4 {[%clk 0:00:11]} 45... Kb6
{[%clk 0:00:33.8]} 46. Kg6 {[%clk 0:00:09.6]} 46... a5 {[%clk 0:00:33.9]} 47. c4
{[%clk 0:00:08.4]} 47... Rb4 {[%clk 0:00:33]} 48. Ra1 {[%clk 0:00:07.9]} 48...
Rxc4 {[%clk 0:00:33]} 49. Kf5 {[%clk 0:00:08.8]} 49... Kb5 {[%clk 0:00:31.4]}
50. Ke5 {[%clk 0:00:08.5]} 50... a4 {[%clk 0:00:30.9]} 51. Kd5 {[%clk
0:00:06.6]} 51... Rh4 {[%clk 0:00:30.4]} 52. Rb1+ {[%clk 0:00:04.3]} 52... Ka5
{[%clk 0:00:27.2]} 53. Ra1 {[%clk 0:00:04.4]} 53... a3 {[%clk 0:00:26.6]} 54.
Rxa3+ {[%clk 0:00:03.9]} 54... Kb4 {[%clk 0:00:27.2]} 55. Rd3 {[%clk 0:00:03.4]}
55... Rh5+ {[%clk 0:00:27.1]} 0-1

[Event "*** Titled Tuesday Blitz"]
[Site "Chess.com"]
[Date "2020.05.12"]
[Round "5"]
[White "Ceejay271"]
[Black "Margarita2907"]
[Result "1-0"]
[WhiteElo "2359"]
[BlackElo "2005"]
[TimeControl "180+1"]
[EndTime "10:56:18 PDT"]
[Termination "Ceejay271 won by resignation"]

1. d4 {[%clk 0:03:00.9]} 1... Nf6 {[%clk 0:02:49.7]} 2. c4 {[%clk 0:03:01.2]}
2... e6 {[%clk 0:02:48]} 3. Nc3 {[%clk 0:03:00.4]} 3... d5 {[%clk 0:02:46.5]} 4.
Nf3 {[%clk 0:02:58.9]} 4... Nbd7 {[%clk 0:02:43]} 5. g3 {[%clk 0:02:56.9]} 5...
Be7 {[%clk 0:02:38.7]} 6. Bg2 {[%clk 0:02:57.4]} 6... O-O {[%clk 0:02:35]} 7.
O-O {[%clk 0:02:58]} 7... c6 {[%clk 0:02:33.1]} 8. Qd3 {[%clk 0:02:56.8]} 8...
b6 {[%clk 0:02:31.8]} 9. e4 {[%clk 0:02:55.7]} 9... Ba6 {[%clk 0:02:30.5]} 10.
b3 {[%clk 0:02:51.2]} 10... Bb7 {[%clk 0:02:27]} 11. Rd1 {[%clk 0:02:30.7]}
11... Rc8 {[%clk 0:02:21.9]} 12. Bb2 {[%clk 0:02:17.5]} 12... c5 {[%clk
0:02:19.4]} 13. cxd5 {[%clk 0:02:14]} 13... exd5 {[%clk 0:02:15.5]} 14. Nxd5
{[%clk 0:02:10.6]} 14... Nxd5 {[%clk 0:02:11.7]} 15. exd5 {[%clk 0:02:10.4]}
15... Nf6 {[%clk 0:01:55.5]} 16. dxc5 {[%clk 0:02:07]} 16... Bxc5 {[%clk
0:01:51.6]} 17. Ne5 {[%clk 0:02:06.1]} 17... Qd6 {[%clk 0:01:42]} 18. h3 {[%clk
0:01:59.5]} 18... Rfd8 {[%clk 0:01:31.3]} 19. Qf5 {[%clk 0:01:52.6]} 19... Ba3
{[%clk 0:01:16.5]} 20. Bxa3 {[%clk 0:01:47.5]} 20... Qxa3 {[%clk 0:01:17.4]} 21.
Nc6 {[%clk 0:01:45.4]} 21... Bxc6 {[%clk 0:01:06.6]} 22. dxc6 {[%clk 0:01:43.6]}
22... Qe7 {[%clk 0:00:53.9]} 23. Rxd8+ {[%clk 0:01:38.1]} 23... Qxd8 {[%clk
0:00:51.4]} 24. Rc1 {[%clk 0:01:36.3]} 24... Rc7 {[%clk 0:00:47.9]} 25. Qc2
{[%clk 0:01:25.3]} 25... g6 {[%clk 0:00:45.9]} 26. Rd1 {[%clk 0:01:24.2]} 26...
Qe7 {[%clk 0:00:43]} 27. Qc3 {[%clk 0:01:22.2]} 27... h5 {[%clk 0:00:38.5]} 28.
Re1 {[%clk 0:01:17.6]} 28... Qd6 {[%clk 0:00:30]} 29. h4 {[%clk 0:01:06.6]}
29... Kh7 {[%clk 0:00:25.4]} 30. b4 {[%clk 0:01:05.2]} 30... a5 {[%clk 0:00:22]}
31. b5 {[%clk 0:01:03.7]} 31... a4 {[%clk 0:00:12.4]} 32. Qe5 {[%clk 0:00:57.3]}
32... Qxe5 {[%clk 0:00:10.8]} 33. Rxe5 {[%clk 0:00:56.1]} 33... Kg7 {[%clk
0:00:11.4]} 34. Re3 {[%clk 0:00:50.7]} 34... Kf8 {[%clk 0:00:10.9]} 35. Kf1
{[%clk 0:00:42.4]} 35... Ne8 {[%clk 0:00:09.5]} 36. a3 {[%clk 0:00:38.3]} 36...
Nd6 {[%clk 0:00:08.7]} 37. Re5 {[%clk 0:00:38.2]} 37... Nc4 {[%clk 0:00:07.9]}
38. Rd5 {[%clk 0:00:29.3]} 38... Ke7 {[%clk 0:00:07.1]} 39. Ke1 {[%clk 0:00:25]}
39... Nxa3 {[%clk 0:00:06.5]} 40. Bf1 {[%clk 0:00:20]} 40... Nc2+ {[%clk
0:00:06]} 41. Kd2 {[%clk 0:00:19.4]} 41... Nb4 {[%clk 0:00:06.1]} 42. Rd4 {[%clk
0:00:19.9]} 42... Na2 {[%clk 0:00:04.9]} 43. Rxa4 {[%clk 0:00:18.8]} 43... Kd6
{[%clk 0:00:04.4]} 44. Rxa2 {[%clk 0:00:17.9]} 44... Kc5 {[%clk 0:00:04.8]} 45.
Ra8 {[%clk 0:00:16.6]} 45... Re7 {[%clk 0:00:03.6]} 46. Rb8 {[%clk 0:00:16.1]}
46... Rc7 {[%clk 0:00:03.1]} 47. Rb7 {[%clk 0:00:15.1]} 47... Re7 {[%clk
0:00:03.5]} 48. Rxe7 {[%clk 0:00:14.5]} 1-0